bitfinex-derivatives/quotes_SOLF0:USTF0_20251125
["timestamp","ask_amount","ask_price","bid_price","bid_amount"]
[1764105807845,5.37119055,137.53,137.52,0.05286194]
[1764105808037,2.94,137.52,137.45,3.01]
[1764105808235,0.05010461,137.54,137.44,177.7398474]
[1764105808236,13.80352951,137.51,137.49,1.80907825]
[1764105808541,5.37119055,137.5,137.49,1.80907825]
[1764105808930,5.37119055,137.5,137.49,1.80810871]
[1764105812333,5.48717991,137.58,137.5,3.01]
[1764105812636,8.42717991,137.59,137.56,3.01]
[1764105812833,5.48717991,137.6,137.56,3.01]
[1764105813135,8.42717991,137.61,137.58,1.80082152]
[1764105813336,8.47941358,137.61,137.58,1.84781751]
[1764105813641,2.94,137.6,137.58,0.04699599]
[1764105813942,2.94,137.6,137.58,1.84858118]
[1764105814140,8.42717991,137.6,137.58,0.04699599]
[1764105814343,2.94,137.59,137.58,0.04699599]
[1764105815045,2.94,137.58,137.54,3.01]
[1764105815243,2.94,137.58,137.51,4.16078667]
[1764105815244,2.94,137.57,137.55,1.80270906]
[1764105815939,2.99551884,137.57,137.55,1.85677101]
[1764105816139,2.99551884,137.57,137.56,1.80270906]
[1764105816344,2.99551884,137.57,137.55,0.05406195]
[1764105817838,2.94,137.56,137.55,0.05406195]
[1764105818245,2.94,137.56,137.45,26.20550056]
[1764105818246,2.94,137.56,137.49,3.01]
[1764105818444,2.94,137.55,137.53,1.80363606]
[1764105819351,2.94,137.54,137.53,1.85395289]
[1764105819549,2.94,137.54,137.53,0.05031683]
[1764105819746,2.94,137.54,137.53,1.85407343]
[1764105819946,2.94,137.54,137.53,0.05031683]
[1764105820147,2.94,137.54,137.53,1.85407343]
[1764105820443,2.94,137.54,137.53,0.05031683]
[1764105820643,7.90051663,137.55,137.54,3.01]
[1764105820947,7.90051663,137.55,137.53,3.06031683]
[1764105821147,7.90051663,137.55,137.54,1.80309535]
[1764105822347,7.90051663,137.55,137.54,8.34969535]
[1764105822547,7.90051663,137.55,137.54,6.5466]
[1764105823046,10.84051663,137.55,137.54,6.5466]
[1764105823348,2.94,137.58,137.57,6.5451]
[1764105824353,2.94,137.57,137.56,0.04650982]
[1764105824552,16.37202441,137.57,137.56,0.04650982]
[1764105825758,2.94,137.56,137.54,6.5462]
[1764105825959,16.37202441,137.55,137.54,6.5462]
[1764105826151,10.8848445,137.55,137.54,6.5462]
[1764105826655,16.37202441,137.55,137.54,6.5462]
[1764105827358,13.70722078,137.55,137.54,6.5462]
[1764105827750,8.22004087,137.55,137.54,6.5462]
[1764105828851,13.70722078,137.55,137.54,6.5462]
[1764105829467,8.22004087,137.55,137.54,6.5462]
[1764105831269,13.70722078,137.55,137.54,6.5462]
[1764105832754,8.22004087,137.55,137.54,6.5462]
[1764105835466,5.28004087,137.55,137.54,6.5462]
[1764105835670,5.28004087,137.55,137.54,9.4662]
[1764105841976,8.40004087,137.55,137.54,6.5462]
[1764105842178,3.12,137.54,137.53,6.60266736]
[1764105842369,13.89529434,137.54,137.53,0.05566736]
[1764105843164,5.28004087,137.54,137.53,9.64276736]
[1764105845375,5.28004087,137.54,137.53,6.60276736]
[1764105845566,13.89589978,137.54,137.53,0.05566736]
[1764105847671,13.89589978,137.54,137.53,6.60276736]
[1764105853579,10.77589978,137.54,137.53,6.60276736]
[1764105853776,10.77589978,137.54,137.53,9.64276736]
[1764105853976,5.28004087,137.54,137.53,9.64276736]
[1764105854476,5.28004087,137.54,137.53,6.60276736]
[1764105854678,13.89921119,137.54,137.53,6.60276736]
[1764105859278,10.77921119,137.54,137.53,9.47276736]
[1764105859483,1.119e-05,137.54,137.53,9.47276736]
[1764105859683,0.04651306,137.56,137.55,6.5461]
[1764105860784,3.11651306,137.56,137.55,6.5461]
[1764105864982,3.11651306,137.56,137.53,0.05566736]
[1764105865288,3.07,137.55,137.54,1.81187918]
[1764105865988,3.07,137.55,137.53,0.05566736]
[1764105866380,3.07,137.55,137.54,6.5466]
[1764105869200,3.07,137.55,137.53,0.05566736]
[1764105870290,3.07,137.55,137.53,6.60266736]
[1764105870488,3.07,137.55,137.53,0.05566736]
[1764105871290,3.07,137.55,137.54,6.5466]
[1764105871487,13.77070543,137.55,137.54,6.5466]
[1764105874898,10.70070543,137.55,137.54,9.4166]
[1764105883714,13.77070543,137.55,137.54,6.5466]
[1764105887199,13.77072683,137.55,137.54,6.5466]
[1764105889108,3.14,137.54,137.53,6.60266736]
[1764105889407,13.84072683,137.54,137.53,6.60266736]
[1764105891814,10.70072683,137.54,137.53,9.55266736]
[1764105898214,5.21643655,137.54,137.53,9.55266736]
[1764105899013,10.63480203,137.54,137.53,9.55266736]
[1764105899919,5.21643655,137.54,137.53,9.55266736]
[1764105900418,10.63467475,137.54,137.53,9.55266736]
[1764105900619,5.21643655,137.54,137.53,9.55266736]
[1764105902417,0.04651306,137.56,137.55,9.5861]
[1764105903919,6.78381078,137.6,137.59,9.5842]
[1764105904116,5.41493465,137.6,137.59,9.5842]
[1764105906317,8.43493465,137.6,137.59,6.5442]
[1764105906521,3.02,137.59,137.58,0.04690507]
[1764105906724,8.43493465,137.59,137.58,0.04690507]
[1764105909215,8.43493465,137.59,137.58,6.59160507]
[1764105911420,5.41493465,137.59,137.58,9.63160507]
[1764105911627,0.05078186,137.61,137.6,9.5837]
[1764105911829,0.05078186,137.61,137.6,6.5437]
[1764105912626,3.07078186,137.61,137.58,6.59130507]
[1764105913027,3.07078186,137.61,137.58,0.04690507]
[1764105918137,9.61408186,137.61,137.58,0.04690507]
[1764105918327,2.94,137.6,137.58,0.04690507]
[1764105918830,27.86,137.59,137.58,0.04690507]
[1764105919230,0.05078186,137.61,137.58,3.14690507]
[1764105919429,0.05078186,137.61,137.59,3.1]
[1764105919626,2.99078186,137.61,137.6,6.5437]
[1764105921130,2.99078186,137.61,137.58,0.04690507]
[1764105921629,6.59408186,137.61,137.58,0.04690507]
[1764105921829,2.94,137.6,137.58,0.04690507]
[1764105923533,14.77660262,137.59,137.58,0.04690507]
[1764105926440,8.23240262,137.59,137.58,0.04690507]
[1764105928447,14.77660262,137.59,137.58,0.04690507]
[1764105928741,33.15240262,137.59,137.58,0.04690507]
[1764105929239,33.15264425,137.59,137.58,0.04690507]
[1764105933235,33.15264425,137.59,137.54,3.1]
[1764105933236,2.94,137.58,137.47,3.1]
[1764105933542,2.94,137.55,137.51,1.8069466]
[1764105933741,2.94,137.53,137.51,1.8069466]
[1764105933943,5.49118065,137.52,137.51,1.8069466]
[1764105934141,13.7238249,137.52,137.51,1.8069466]
[1764105936543,5.49118065,137.52,137.51,1.8069466]
[1764105937142,5.49118065,137.52,137.5,9.7040268]
[1764105937346,5.49118065,137.51,137.5,9.7040268]
[1764105945149,8.065e-05,137.51,137.5,9.7040268]
[1764105945539,0.05057363,137.53,137.52,6.5475]
[1764105946139,0.05057363,137.53,137.52,9.6475]
[1764105946334,2.94,137.57,137.55,3.1]
[1764105946546,5.60526781,137.57,137.5,101.8642]
[1764105946739,5.60526781,137.57,137.52,1.80477846]
[1764105946740,2.94,137.56,137.52,1.80477846]
[1764105947237,0.04958838,137.55,137.53,0.05143137]
[1764105947440,3.14,137.54,137.53,6.59853137]
[1764105949141,3.14,137.54,137.53,0.05143137]
[1764105952245,28.06,137.54,137.53,0.05143137]
[1764105955649,3.14,137.54,137.53,0.05143137]
[1764105955854,28.06,137.54,137.53,0.05143137]
[1764105957045,33.5127973,137.54,137.53,0.05143137]
[1764105957853,8.5927973,137.54,137.53,0.05143137]
[1764105958049,33.5127973,137.54,137.53,0.05143137]
[1764105958446,38.97304546,137.54,137.53,0.05143137]
[1764105959053,38.97471503,137.54,137.53,0.05143137]
[1764105960361,45.52131503,137.54,137.53,0.00143137]
[1764105960549,2.91,137.53,137.45,3.13]
[1764105960748,2.91,137.51,137.48,1.80654298]
[1764105960944,2.91,137.49,137.48,1.80654298]
[1764105961149,8.36576649,137.49,137.48,8.35594298]
[1764105961456,8.36576649,137.49,137.48,6.5494]
[1764105963757,5.45576649,137.49,137.48,9.6794]
[1764105964051,6.065e-05,137.5,137.49,9.679]
[1764105964255,6.065e-05,137.5,137.49,11.139]
[1764105964458,6.065e-05,137.5,137.49,13.80426781]
[1764105971577,6.065e-05,137.5,137.49,12.34426781]
[1764105996098,11.67637818,137.59,137.54,104.8901]
[1764105996099,8.44605211,137.56,137.54,104.8901]
[1764105996398,9.853e-05,137.55,137.54,104.8901]
[1764105996997,9.853e-05,137.55,137.54,114.10196781]
[1764105997391,0.05125057,137.56,137.55,3.06]
[1764106006899,3.02125057,137.56,137.54,6.5466]
[1764106007098,2.97,137.55,137.54,6.5466]
[1764106007801,2.88,137.54,137.53,6.60225551]
[1764106007993,8.46918318,137.54,137.53,6.60225551]
[1764106008195,8.46918318,137.54,137.53,0.05525551]
[1764106008390,13.69913449,137.54,137.53,0.05525551]
[1764106008595,20.49779179,137.54,137.53,0.05525551]
[1764106009301,13.69913449,137.54,137.53,0.05525551]
[1764106011209,10.81913449,137.54,137.53,9.78235551]
[1764106011906,2.93125057,137.56,137.54,6.5463]
[1764106012107,13.69726016,137.55,137.54,6.5463]
[1764106016410,2.88,137.54,137.53,0.05525551]
[1764106016610,8.10746529,137.54,137.53,0.05525551]
[1764106018112,13.69800393,137.54,137.53,0.05525551]
[1764106020615,3.03,137.53,137.5,6.548]
[1764106020805,3.03,137.51,137.5,6.548]
[1764106021005,13.84800393,137.51,137.5,6.548]
[1764106022711,5.22746529,137.51,137.5,6.548]
[1764106023018,8.25746529,137.51,137.5,6.548]
[1764106023407,3.03,137.5,137.49,0.05205402]
[1764106023608,13.84670686,137.5,137.49,0.05205402]
[1764106032125,3.03,137.49,137.46,6.55]
[1764106032313,3.03,137.47,137.46,6.55]
[1764106032514,8.25746529,137.47,137.46,6.55]
[1764106033820,5.22746529,137.47,137.46,9.59]
[1764106034422,5.22746529,137.47,137.46,6.55]
[1764106034625,8.25746529,137.47,137.46,6.55]
[1764106035425,3.03,137.47,137.46,6.55]
[1764106042632,2.98728535,137.48,137.47,6.5499]
[1764106044434,8.19826799,137.48,137.47,6.5499]
[1764106044633,2.98728535,137.48,137.47,6.5499]
[1764106045431,8.18486275,137.48,137.47,6.5499]
[1764106045733,5.24486275,137.48,137.47,9.5899]
[1764106045934,0.04728535,137.48,137.47,9.5899]
[1764106047638,2.98728535,137.48,137.47,6.5499]
[1764106048931,2.94,137.47,137.43,101.9138]
[1764106049127,2.94,137.47,137.45,4.84594644]
[1764106049437,2.94,137.47,137.45,3.04]
[1764106050229,2.94,137.47,137.42,3.04]
[1764106050427,10.78381891,137.46,137.43,1.80712779]
[1764106050633,10.78381891,137.45,137.37,182.67891761]
[1764106050834,2.94,137.41,137.39,1.80779789]
[1764106051338,2.94,137.41,137.38,1.80779789]
[1764106051339,2.94,137.39,137.38,1.80779789]
[1764106051541,2.94,137.38,137.33,3.04]
[1764106051734,5.57226134,137.39,137.36,4.84772953]
[1764106051939,0.04631623,137.37,137.36,3.04]
[1764106052136,27.90933646,137.38,137.36,3.04]
[1764106052341,33.10689873,137.38,137.36,3.04]
[1764106052542,27.90933646,137.38,137.36,9.595]
[1764106058637,0.04933646,137.38,137.37,3.04]
[1764106058834,0.04933646,137.38,137.36,9.595]
[1764106059040,0.04933646,137.38,137.37,1.80038162]
[1764106059242,2.98933646,137.38,137.37,1.80038162]
[1764106061344,2.98933646,137.38,137.36,5.92396391]
[1764106061742,0.04933646,137.38,137.36,8.96396391]
[1764106062547,0.04933646,137.38,137.37,3.04]
[1764106063640,10.76525285,137.42,137.39,3.04]
[1764106063842,2.94,137.42,137.39,3.04]
[1764106064652,2.99354567,137.42,137.39,3.09066846]
[1764106065246,2.99354567,137.42,137.4,6.5532]
[1764106066040,2.94,137.41,137.4,6.5532]
[1764106068041,0.05354567,137.42,137.41,3.05]
[1764106069250,3.14,137.41,137.39,0.05066846]
[1764106070350,3.14,137.41,137.39,6.60436846]
[1764106071142,3.14,137.4,137.39,6.60436846]
[1764106071545,30.11299151,137.41,137.39,9.65436846]
[1764106071747,28.06,137.41,137.39,9.65436846]
[1764106072053,3.14,137.4,137.39,6.60436846]
[1764106074255,3.14,137.4,137.39,0.05066846]
[1764106079553,3.14,137.4,137.39,6.60436846]
[1764106080553,3.14,137.4,137.39,0.05066846]
[1764106081654,28.06,137.4,137.39,0.05066846]
[1764106083358,3.14,137.4,137.39,6.60436846]
[1764106084147,8.34789437,137.4,137.39,6.60436846]
[1764106085362,8.34789437,137.4,137.39,0.05066846]
[1764106088261,5.20789437,137.4,137.39,9.54436846]
[1764106088468,8.29789437,137.4,137.39,0.05066846]
[1764106089166,13.85740641,137.4,137.39,0.05066846]
[1764106090066,10.76740641,137.4,137.39,9.54436846]
[1764106090265,8.29789437,137.4,137.39,6.60436846]
[1764106090768,13.87518683,137.4,137.39,6.60436846]
[1764106094378,13.87518683,137.4,137.39,0.05066846]
[1764106094980,13.87518683,137.4,137.39,6.60436846]
[1764106105689,2.9,137.39,137.35,3.04]
[1764106105881,13.68518683,137.38,137.37,1.81823128]
[1764106108588,2.9,137.37,137.34,9.5956]
[1764106108786,13.68518683,137.36,137.34,9.5956]
[1764106108981,13.68518683,137.35,137.34,6.5556]
[1764106109194,10.78518683,137.35,137.34,9.5956]
[1764106112685,13.68518683,137.35,137.34,6.5556]
[1764106118100,13.69258434,137.35,137.34,6.5556]
[1764106123808,10.79258434,137.35,137.34,9.5956]
[1764106125604,5.20789437,137.35,137.34,9.5956]
[1764106129208,2.98,137.34,137.31,3.09]
[1764106129411,5.20789437,137.33,137.31,3.09]
[1764106129601,2.98,137.34,137.31,3.09]
[1764106129908,8.19437051,137.33,137.32,6.5567]
[1764106130410,5.21437051,137.33,137.32,9.6467]
[1764106134009,24.97192315,137.36,137.29,102.0186]
[1764106134010,3.03192315,137.36,137.35,6.5556]
[1764106134209,13.76310362,137.36,137.35,6.5556]
[1764106134408,2.98,137.35,137.32,3.09]
[1764106134612,8.18819775,137.34,137.33,6.5566]
[1764106134809,5.20819775,137.34,137.33,9.6466]
[1764106137018,27.9,137.36,137.35,6.5556]
[1764106137316,38.71931185,137.36,137.35,6.5556]
[1764106146713,2.93,137.35,137.33,9.6463]
[1764106146913,2.93,137.35,137.34,1.81558986]
[1764106147122,13.7570683,137.35,137.34,1.81558986]
[1764106149521,2.93,137.34,137.33,6.5563]
[1764106149716,13.7570683,137.34,137.33,6.5563]
[1764106157331,10.8270683,137.34,137.33,9.7063]
[1764106158520,13.8270683,137.34,137.33,6.5563]
[1764106162434,3.0,137.33,137.32,6.557]
[1764106162635,13.8270683,137.33,137.32,6.557]
[1764106166827,13.8270683,137.33,137.31,6.5575]
[1764106167031,13.8270683,137.32,137.31,6.5575]
[1764106169934,13.8270683,137.32,137.31,9.7075]
[1764106170230,10.8270683,137.32,137.31,9.7075]
[1764106170426,5.24718557,137.32,137.31,9.7075]
[1764106179841,13.79655839,137.32,137.31,6.5575]
[1764106196847,10.79655839,137.32,137.31,9.6575]
[1764106203051,13.85655839,137.32,137.31,9.6575]
[1764106203251,13.85655839,137.32,137.31,6.5575]
[1764106203454,10.79655839,137.32,137.31,9.4275]
[1764106206458,13.85655839,137.32,137.31,9.4275]
[1764106206652,13.85655839,137.32,137.31,6.5575]
[1764106210664,10.79655839,137.32,137.31,9.4275]
[1764106211262,13.85655839,137.32,137.31,6.5575]
[1764106213470,10.79655839,137.32,137.31,9.4275]
[1764106217059,9.8586573,137.36,137.35,6.5556]
[1764106217263,8.60820202,137.36,137.35,6.5556]
[1764106218156,3.05,137.35,137.34,0.04661514]
[1764106219762,5.72363977,137.35,137.34,0.04661514]
[1764106222074,3.05,137.35,137.34,0.04661514]
[1764106225682,5.72363977,137.35,137.34,0.04661514]
[1764106227782,3.05,137.35,137.34,0.04661514]
[1764106229183,13.71810031,137.35,137.34,0.04661514]
[1764106231186,3.05,137.34,137.28,3.15]
[1764106231387,3.05,137.32,137.28,3.15]
[1764106231688,3.05,137.28,137.24,9.7107]
[1764106231883,3.05,137.26,137.21,3.15]
[1764106232084,5.21044899,137.25,137.21,3.15]
[1764106232292,0.05023682,137.24,137.23,3.15]
[1764106232688,3.10023682,137.24,137.22,9.7118]
[1764106232887,3.10023682,137.24,137.22,6.5618]
[1764106233278,3.10023682,137.24,137.2,3.15]
[1764106233484,3.05,137.23,137.18,3.15]
[1764106233692,3.05,137.21,137.18,3.15]
[1764106233883,5.20160832,137.2,137.18,3.15]
[1764106234195,3.09752897,137.21,137.18,3.15]
[1764106234787,0.04752897,137.21,137.2,3.15]
[1764106234985,5.24181861,137.21,137.2,3.15]
[1764106235192,0.04752897,137.21,137.2,3.15]
[1764106236394,3.05,137.25,137.22,3.15]
[1764106236589,3.05,137.25,137.24,1.81002242]
[1764106236894,8.23362652,137.25,137.24,1.81002242]
[1764106237192,3.05,137.25,137.24,1.81002242]
[1764106241993,5.17465436,137.28,137.25,3.15]
[1764106242187,3.05,137.31,137.27,4.96002242]
[1764106242493,5.17465436,137.32,137.3,9.708]
[1764106242796,3.05,137.33,137.31,1.81002242]
[1764106243092,3.10362389,137.33,137.31,0.05010561]
[1764106243291,3.10362389,137.33,137.31,1.85588814]
[1764106243490,3.10362389,137.33,137.31,6.60740561]
[1764106243695,3.10362389,137.33,137.32,1.80579388]
[1764106243895,3.10362389,137.33,137.31,6.60740561]
[1764106249993,0.05362389,137.33,137.31,9.54740561]
[1764106250198,0.05362389,137.33,137.32,4.74610615]
[1764106250395,0.05362389,137.33,137.32,2.94]
[1764106250598,0.05362389,137.33,137.31,9.54740561]
[1764106250796,0.05362389,137.33,137.32,4.74600523]
[1764106251001,0.05362389,137.33,137.32,2.94]
[1764106251695,10.6009271,137.37,137.32,2.94]
[1764106251898,3.17,137.38,137.35,9.4953]
[1764106252088,8.34586148,137.38,137.36,1.80587198]
[1764106252293,3.17,137.38,137.35,2.94]
[1764106252496,3.17,137.38,137.36,1.80531391]
[1764106252695,8.34586148,137.38,137.36,1.80531391]
[1764106252889,3.17,137.38,137.36,1.80531391]
[1764106253088,3.22183226,137.38,137.36,1.85936227]
[1764106253298,8.39769374,137.38,137.36,6.60914836]
[1764106253493,3.22183226,137.38,137.36,6.60914836]
[1764106253890,8.39769374,137.38,137.36,6.60914836]
[1764106254093,3.22183226,137.38,137.36,6.60914836]
[1764106254295,8.39531139,137.38,137.36,6.60914836]
[1764106254501,8.39531139,137.38,137.36,9.54914836]
[1764106254502,3.22183226,137.38,137.36,9.54914836]
[1764106254703,8.39531139,137.38,137.36,9.54914836]
[1764106254904,3.22183226,137.38,137.36,9.54914836]
[1764106255203,8.39531139,137.38,137.36,9.54914836]
[1764106255400,3.22183226,137.38,137.36,9.54914836]
[1764106255606,3.22183226,137.38,137.37,1.80433182]
[1764106256097,0.05183226,137.38,137.37,4.74433182]
[1764106256298,0.05183226,137.38,137.37,2.94]
[1764106256701,0.05183226,137.38,137.36,9.54914836]
[1764106256897,0.05183226,137.38,137.37,1.80382375]
[1764106257403,3.22183226,137.38,137.37,1.80382375]
[1764106260602,8.18347913,137.42,137.37,4.97382375]
[1764106260804,3.01,137.41,137.39,11.52742375]
[1764106261004,3.01,137.41,137.4,1.80382375]
[1764106261199,3.01,137.41,137.39,9.7236]
[1764106261399,3.01,137.41,137.4,1.80175733]
[1764106261600,3.01,137.41,137.39,9.7236]
[1764106261800,3.06422443,137.41,137.4,1.80156551]
[1764106263307,3.06422443,137.41,137.39,3.21618865]
[1764106263505,3.06422443,137.41,137.4,1.80042541]
[1764106263904,8.23770356,137.41,137.34,3.17]
[1764106264094,3.01,137.39,137.34,3.17]
[1764106264903,0.0540531,137.38,137.37,3.17]
[1764106269509,3.0640531,137.38,137.35,9.77305942]
[1764106270908,3.01,137.36,137.35,0.04755942]
[1764106272504,27.91,137.36,137.35,0.04755942]
[1764106274402,3.01,137.34,137.29,6.558]
[1764106274611,3.01,137.33,137.31,1.79813004]
[1764106274816,3.01,137.33,137.25,3.17]
[1764106275008,3.01,137.3,137.26,6.5598]
[1764106275207,3.01,137.29,137.25,3.17]
[1764106275418,0.04763257,137.28,137.26,0.04699628]
[1764106275716,0.04763257,137.28,137.27,1.79834294]
[1764106276317,3.05763257,137.28,137.27,1.79834294]
[1764106280410,3.05763257,137.28,137.26,0.04699628]
[1764106280707,0.04763257,137.28,137.26,2.98699628]
[1764106280909,24.94763257,137.28,137.27,1.79999846]
[1764106281311,0.04763257,137.28,137.27,4.73999846]
[1764106281607,0.04763257,137.28,137.27,2.94]
[1764106287615,0.04763257,137.28,137.26,6.60679628]
[1764106287616,33.26031886,137.33,137.28,2.94]
[1764106287815,28.03,137.33,137.3,4.74223597]
[1764106288017,33.26031886,137.33,137.3,2.94]
[1764106288227,28.03,137.33,137.3,2.94]
[1764106288426,3.13,137.32,137.3,2.94]
[1764106288630,3.13,137.32,137.3,2.99300616]
[1764106290029,5.28259039,137.33,137.31,2.94]
[1764106290325,0.05227153,137.33,137.32,2.94]
[1764106299738,3.13,137.39,137.34,2.94]
[1764106300044,3.13,137.41,137.38,4.7414867]
[1764106300232,3.13,137.41,137.39,1.8014867]
[1764106300434,3.13,137.41,137.38,2.94]
[1764106300741,3.17820149,137.41,137.39,1.80102094]
[1764106301743,28.07820149,137.41,137.39,1.80102094]
[1764106302035,3.13,137.4,137.38,0.05060692]
[1764106302236,2.64,137.39,137.38,0.05060692]
[1764106302632,2.59,137.38,137.31,2.94]
[1764106302828,2.59,137.37,137.31,2.94]
[1764106303033,2.59,137.37,137.34,1.80157366]
[1764106303647,2.64152288,137.37,137.34,1.85357378]
[1764106303843,2.64152288,137.37,137.34,0.05200012]
[1764106304037,2.64152288,137.37,137.34,1.85369261]
[1764106304234,2.64152288,137.37,137.34,0.05200012]
[1764106304438,2.59,137.36,137.34,0.05200012]
[1764106305641,2.59,137.36,137.34,1.85406207]
[1764106306039,2.59,137.36,137.34,0.05200012]
[1764106306239,24.9,137.35,137.34,1.85444442]
[1764106306540,24.9,137.35,137.34,0.05200012]
[1764106306739,24.9,137.35,137.34,1.85444442]
[1764106306940,27.49,137.35,137.34,0.05200012]
[1764106307139,2.59,137.35,137.34,1.85444442]
[1764106307441,2.59,137.35,137.34,0.05200012]
[1764106307746,2.59,137.35,137.34,1.85488157]
[1764106307947,2.59,137.35,137.34,0.05200012]
[1764106308145,2.59,137.35,137.34,1.85488157]
[1764106308346,2.59,137.35,137.34,0.05200012]
[1764106308549,2.59,137.35,137.34,1.85532966]
[1764106308743,2.59,137.35,137.34,0.05200012]
[1764106308944,2.59,137.35,137.34,1.85532966]
[1764106309148,2.59,137.35,137.34,0.05200012]
[1764106309342,2.59,137.35,137.34,1.85540097]
[1764106309543,2.59,137.35,137.34,0.05200012]
[1764106309743,2.59,137.35,137.34,1.85540097]
[1764106310149,2.59,137.35,137.34,0.05200012]
[1764106310345,2.59,137.35,137.34,1.85584679]
[1764106310546,2.59,137.35,137.34,0.05200012]
[1764106310746,2.59,137.35,137.34,1.85584679]
[1764106310946,2.59,137.35,137.34,0.05200012]
[1764106311150,2.59,137.35,137.34,1.85584679]
[1764106311352,2.59,137.35,137.34,0.05200012]
[1764106311553,2.59,137.35,137.34,1.85641071]
[1764106311753,2.59,137.35,137.34,0.05200012]
[1764106311945,2.59,137.35,137.34,1.85641071]
[1764106312145,2.59,137.35,137.34,0.05200012]
[1764106312352,2.59,137.35,137.34,1.85733394]
[1764106312551,2.59,137.35,137.34,0.05200012]
[1764106312751,2.59,137.35,137.34,1.85733403]
[1764106313049,2.59,137.35,137.34,0.05200012]
[1764106313248,2.59,137.35,137.34,1.85835266]
[1764106313457,7.83458373,137.35,137.34,0.05200012]
[1764106313657,7.83458373,137.35,137.34,1.85839599]
[1764106313855,2.59,137.35,137.34,0.05200012]
[1764106314058,2.59,137.35,137.34,1.85835266]
[1764106314258,7.83771217,137.35,137.34,0.05200012]
[1764106314556,7.83771217,137.35,137.34,1.85931725]
[1764106314752,2.59,137.35,137.34,0.05200012]
[1764106314950,7.84068755,137.35,137.34,1.85931725]
[1764106315150,5.25068755,137.35,137.34,0.05200012]
[1764106315460,5.25068755,137.35,137.34,4.88979763]
[1764106315660,5.25068755,137.35,137.34,3.08200012]
[1764106316249,5.25068755,137.35,137.34,0.05200012]
[1764106316556,5.25068755,137.35,137.34,1.85980646]
[1764106316769,5.25068755,137.35,137.34,0.05200012]
[1764106316965,5.25068755,137.35,137.34,1.85980652]
[1764106317177,5.25068755,137.35,137.34,0.05200012]
[1764106317475,5.25068755,137.35,137.34,1.85983903]
[1764106317663,5.25068755,137.35,137.34,0.05200012]
[1764106317855,5.25068755,137.35,137.34,1.85983913]
[1764106318056,5.25068755,137.35,137.34,0.05200012]
[1764106318267,5.25068755,137.35,137.34,1.85985718]
[1764106318472,7.84068755,137.35,137.34,0.05200012]
[1764106318770,7.84068755,137.35,137.34,1.85985718]
[1764106318974,7.84068755,137.35,137.34,0.05200012]
[1764106319169,7.84068755,137.35,137.34,1.85985718]
[1764106319370,7.84068755,137.35,137.34,0.05200012]
[1764106319674,7.84068755,137.35,137.34,1.85986543]
[1764106319864,7.84068755,137.35,137.34,0.05200012]
[1764106320065,7.84068755,137.35,137.34,1.85986549]
[1764106320273,7.84068755,137.35,137.34,0.05200012]
[1764106320459,7.84068755,137.35,137.34,1.85992007]
[1764106320664,7.84068755,137.35,137.34,0.05200012]
[1764106320865,14.39628755,137.35,137.34,1.85992007]
[1764106321163,14.39628755,137.35,137.34,0.05200012]
[1764106321366,14.39628755,137.35,137.34,1.86020048]
[1764106321659,14.39628755,137.35,137.34,0.05200012]
[1764106321859,7.84068755,137.35,137.34,1.86020048]
[1764106322074,7.84068755,137.35,137.34,0.05200012]
[1764106322272,7.84068755,137.35,137.34,1.86047007]
[1764106322577,7.84068755,137.35,137.34,0.05200012]
[1764106322777,7.84068755,137.35,137.34,1.86058078]
[1764106322965,7.84068755,137.35,137.34,0.05200012]
[1764106323164,7.84068755,137.35,137.34,1.86058084]
[1764106323367,7.84068755,137.35,137.34,0.05200012]
[1764106323565,7.84068755,137.35,137.34,1.8610538]
[1764106323860,32.74068755,137.35,137.34,0.05200012]
[1764106324168,32.74068755,137.35,137.34,1.8610538]
[1764106324363,32.74068755,137.35,137.34,0.05200012]
[1764106324565,32.74068755,137.35,137.34,1.86158438]
[1764106324772,32.74068755,137.35,137.34,0.05200012]
[1764106324971,32.74068755,137.35,137.34,1.86158438]
[1764106325180,5.25068755,137.35,137.34,9.50810012]
[1764106325477,2.64152288,137.37,137.35,2.9]
[1764106325771,2.64152288,137.37,137.36,1.80983211]
[1764106325972,2.64152288,137.37,137.34,0.05200012]
[1764106325973,2.59,137.36,137.34,0.05200012]